[Event "Slovakia Open Piestany-A 2022"]
[Site "Piestany"]
[Date "2022.07.12"]
[Round "1.1"]
[White "Palchuk, Andrii"]
[Black "Demchenko, Anton"]
[Result "0-1"]
[ECO "A50"]
[WhiteElo "2248"]
[BlackElo "2653"]
[Annotator "ChessBase"]
[PlyCount "96"]
[EventDate "2022.07.12"]
[EventType "swiss"]
[EventCountry "SVK"]
[SourceTitle "playchess.com"]
[Source "ChessBase"]
[SourceQuality "1"]
[TimeControl "40/5400+30:1800+30"]

1. d4 {[%emt 0:00:11]} Nf6 {[%emt 0:00:22]} 2. Nf3 {[%emt 0:00:16]} g6 {[%emt 0:01:21]} 3. c4 {[%emt 0:00:39]} Bg7 {[%emt 0:00:06]} 4. g3 {[%emt 0:00:04]} b6 {[%emt 0:00:47]} 5. Bg2 {[%emt 0:00:58]} Bb7 {[%emt 0:00:05]} 6. O-O {[%emt 0:00:41]} O-O {[%emt 0:00:28]} 7. d5 {[%emt 0:02:53]} Na6 {[%emt 0:01:21]} 8. Nc3 {[%emt 0:01:37]} Nc5 {[%emt 0:01:09]} 9. Nd4 {[%emt 0:03:52]} e5 {[%emt 0:01:49]} 10. Nc2 {[%emt 0:05:03]} a5 {[%emt 0:14:07]} 11. Rb1 {[%emt 0:03:55]} d6 {[%emt 0:00:43]} 12. b3 {[%emt 0:01:25]} Bc8 {[%emt 0:01:47]} 13. e4 {[%emt 0:14:03]} Ne8 {[%emt 0:04:43]} 14. a3 {[%emt 0:03:55]} f5 {[%emt 0:00:14]} 15. f3 {[%emt 0:02:30]} a4 {[%emt 0:08:54]} 16. b4 {[%emt 0:01:17]} Nb3 {[%emt 0:01:31]} 17. Be3 {[%emt 0:11:57]} f4 {[%emt 0:07:09]} 18. Bf2 {[%emt 0:00:30]} fxg3 {[%emt 0:02:40]} 19. hxg3 {[%emt 0:02:50]} Bh6 {[%emt 0:00:37]} 20. Ne3 {[%emt 0:04:33]} Bd7 {[%emt 0:06:21]} 21. Qd3 {[%emt 0:04:13]} Bg5 {[%emt 0:05:25]} 22. Ne2 {[%emt 0:08:07]} h5 {[%emt 0:09:19]} 23. Be1 {[%emt 0:07:22]} Bh6 {[%emt 0:05:24]} 24. Nc1 {[%emt 0:08:52]} h4 {[%emt 0:05:33]} 25. gxh4 {[%emt 0:04:39]} Nxc1 {[%emt 0:05:08]} 26. Rxc1 {[%emt 0:00:03]} Rf4 {[%emt 0:03:37]} 27. Rc2 {[%emt 0:02:34]} Rxh4 {[%emt 0:00:55]} 28. Ng4 {[%emt 0:01:29]} Bf4 {[%emt 0:00:33]} 29. Bxh4 {[%emt 0:00:55]} Qxh4 {[%emt 0:00:07]} 30. Rd1 {[%emt 0:00:11]} Ng7 {[%emt 0:01:05]} 31. Kf1 {[%emt 0:02:44]} Nh5 {[%emt 0:00:41]} 32. Nf2 {[%emt 0:00:29]} Qh2 {[%emt 0:02:27]} 33. Ng4 {[%emt 0:00:04]} Bxg4 {[%emt 0:02:17]} 34. fxg4 {[%emt 0:00:04]} Ng3+ {[%emt 0:00:05]} 35. Ke1 {[%emt 0:00:09]} Qg1+ {[%emt 0:00:18]} 36. Bf1 {[%emt 0:00:05]} Nxf1 {[%emt 0:00:29]} 37. Qxf1 {[%emt 0:00:00]} Qe3+ {[%emt 0:03:49]} 38. Qe2 {[%emt 0:04:21]} Bg3+ {[%emt 0:06:04]} 39. Kf1 {[%emt 0:00:30]} Rf8+ {[%emt 0:00:30]} 40. Kg2 {[%emt 0:00:30]} Rf2+ {[%emt 0:00:30]} 41. Qxf2 {[%emt 0:30:30]} Bxf2 {[%emt 0:30:30]} 42. Rxf2 {[%emt 0:00:30]} Qxe4+ {[%emt 0:00:30]} 43. Kg3 {[%emt 0:00:30]} Qxc4 {[%emt 0:00:30]} 44. Rdf1 {[%emt 0:00:30]} Qxd5 {[%emt 0:00:30]} 45. g5 {[%emt 0:00:30]} Kg7 {[%emt 0:00:30]} 46. Rf8 {[%emt 0:00:30]} e4 {[%emt 0:00:30]} 47. Kh4 {[%emt 0:00:30]} e3 {[%emt 0:00:30]} 48. Re8 {[%emt 0:00:30]} Qc4+ {[%emt 0:00:30]} 0-1

[Event "Slovakia Open Piestany-A 2022"]
[Site "Piestany"]
[Date "2022.07.12"]
[Round "1.2"]
[White "Donchenko, Alexander"]
[Black "Domalchuk-Jonasson, Aleksandr"]
[Result "1-0"]
[ECO "D31"]
[WhiteElo "2640"]
[BlackElo "2244"]
[Annotator "ChessBase"]
[PlyCount "61"]
[EventDate "2022.07.12"]
[EventType "swiss"]
[EventCountry "SVK"]
[SourceTitle "playchess.com"]
[Source "ChessBase"]
[SourceQuality "1"]
[TimeControl "40/5400+30:1800+30"]

1. c4 {[%emt 0:00:07]} e6 {[%emt 0:00:24]} 2. Nc3 {[%emt 0:00:20]} d5 {[%emt 0:00:49]} 3. d4 {[%emt 0:00:08]} a6 {[%emt 0:01:47]} 4. cxd5 {[%emt 0:00:34]} exd5 {[%emt 0:00:04]} 5. Qb3 {[%emt 0:01:22]} Nf6 {[%emt 0:08:31]} 6. Bg5 {[%emt 0:00:26]} c6 {[%emt 0:01:40]} 7. e4 {[%emt 0:02:10]} Be7 {[%emt 0:08:50]} 8. e5 {[%emt 0:03:41]} Nfd7 {[%emt 0:01:05]} 9. Bxe7 {[%emt 0:00:49]} Qxe7 {[%emt 0:00:07]} 10. Qc2 {[%emt 0:07:05]} O-O {[%emt 0:06:45]} 11. Bd3 {[%emt 0:00:16]} g6 {[%emt 0:03:07]} 12. f4 {[%emt 1:19:32]} f6 {[%emt 1:03:21]} 13. Nf3 {[%emt 0:00:30]} fxe5 {[%emt 0:00:30]} 14. fxe5 {[%emt 0:00:30]} Nb6 {[%emt 0:00:30]} 15. Qb3 {[%emt 0:00:30]} Qd8 {[%emt 0:00:30]} 16. O-O {[%emt 0:00:30]} a5 {[%emt 0:00:30]} 17. Rae1 {[%emt 0:00:30]} Be6 {[%emt 0:00:30]} 18. h4 {[%emt 0:00:30]} N8d7 {[%emt 0:00:30]} 19. Qa3 {[%emt 0:00:30]} Rxf3 {[%emt 0:00:30]} 20. Rxf3 {[%emt 0:00:30]} Qxh4 {[%emt 0:00:30]} 21. Ree3 {[%emt 0:00:30]} Rf8 {[%emt 0:00:30]} 22. Rxf8+ {[%emt 0:00:30]} Nxf8 {[%emt 0:00:30]} 23. Qxa5 {[%emt 0:00:30]} Qxd4 {[%emt 0:00:30]} 24. Nd1 {[%emt 0:00:30]} Nc4 {[%emt 0:00:30]} 25. Bxc4 {[%emt 0:00:30]} dxc4 {[%emt 0:00:30]} 26. Qe1 {[%emt 0:00:30]} Bd5 {[%emt 0:00:30]} 27. Nc3 {[%emt 0:00:30]} Ne6 {[%emt 0:00:30]} 28. Qf2 {[%emt 0:00:30]} Nf4 {[%emt 0:00:30]} 29. Nxd5 {[%emt 0:00:30]} cxd5 {[%emt 0:00:30]} 30. e6 {[%emt 0:00:30]} Kf8 {[%emt 0:00:30]} 31. g3 {[%emt 0:00:30]} 1-0

[Event "Slovakia Open Piestany-A 2022"]
[Site "Piestany"]
[Date "2022.07.12"]
[Round "1.3"]
[White "Leszko, Bence"]
[Black "Moroni, Luca Jr"]
[Result "0-1"]
[ECO "B07"]
[WhiteElo "2241"]
[BlackElo "2584"]
[Annotator "ChessBase"]
[PlyCount "98"]
[EventDate "2022.07.12"]
[EventType "swiss"]
[EventCountry "SVK"]
[SourceTitle "playchess.com"]
[Source "ChessBase"]
[SourceQuality "1"]
[TimeControl "40/5400+30:1800+30"]

1. e4 {[%emt 0:00:06]} d6 {[%emt 0:00:06]} 2. d4 {[%emt 0:00:07]} Nf6 {[%emt 0:00:08]} 3. Nc3 {[%emt 0:00:07]} g6 {[%emt 0:00:04]} 4. Bg5 {[%emt 0:00:42]} Bg7 {[%emt 0:00:15]} 5. Qd2 {[%emt 0:00:08]} O-O {[%emt 0:01:05]} 6. Bh6 {[%emt 0:00:05]} c5 {[%emt 0:01:26]} 7. Bxg7 {[%emt 0:02:48]} Kxg7 {[%emt 0:00:08]} 8. d5 {[%emt 0:00:19]} Qa5 {[%emt 0:01:01]} 9. a4 {[%emt 0:09:00]} Na6 {[%emt 0:02:35]} 10. Nf3 {[%emt 0:07:47]} Nb4 {[%emt 0:04:07]} 11. Bd3 {[%emt 0:11:19]} Bg4 {[%emt 0:03:07]} 12. O-O {[%emt 0:09:11]} Bxf3 {[%emt 0:03:00]} 13. gxf3 {[%emt 0:00:00]} Nxd3 {[%emt 0:01:52]} 14. Qxd3 {[%emt 0:02:22]} Nh5 {[%emt 0:00:43]} 15. Ne2 {[%emt 0:00:17]} Qc7 {[%emt 0:00:57]} 16. f4 {[%emt 0:02:35]} f5 {[%emt 0:03:44]} 17. Qc3+ {[%emt 0:00:21]} Kh6 {[%emt 0:02:47]} 18. f3 {[%emt 0:06:09]} Qd7 {[%emt 0:07:50]} 19. Qe3 {[%emt 0:05:19]} Rae8 {[%emt 0:05:07]} 20. Ng3 {[%emt 0:01:44]} e6 {[%emt 0:03:51]} 21. Nxh5 {[%emt 0:02:29]} Kxh5 {[%emt 0:03:09]} 22. c4 {[%emt 0:03:36]} exd5 {[%emt 0:05:15]} 23. cxd5 {[%emt 0:00:08]} Rf7 {[%emt 0:06:48]} 24. e5 {[%emt 0:10:14]} dxe5 {[%emt 0:00:43]} 25. fxe5 {[%emt 0:00:05]} f4 {[%emt 0:08:38]} 26. Qe4 {[%emt 0:00:31]} Rf5 {[%emt 0:01:37]} 27. Rae1 {[%emt 0:04:07]} Qe7 {[%emt 0:02:14]} 28. Rf2 {[%emt 0:10:16]} Rxe5 {[%emt 0:02:40]} 29. Qxe5+ {[%emt 0:00:48]} Qxe5 {[%emt 0:00:02]} 30. Rxe5+ {[%emt 0:00:06]} Rxe5 {[%emt 0:00:02]} 31. Rd2 {[%emt 0:00:07]} Re7 {[%emt 0:01:23]} 32. d6 {[%emt 0:00:42]} Rd7 {[%emt 0:00:02]} 33. Rd5+ {[%emt 0:00:16]} g5 {[%emt 0:01:31]} 34. Kf2 {[%emt 0:03:13]} b6 {[%emt 0:01:18]} 35. Ke2 {[%emt 0:00:09]} Kg6 {[%emt 0:03:20]} 36. Kd3 {[%emt 0:00:09]} Kf6 {[%emt 0:03:53]} 37. Ke4 {[%emt 0:03:56]} h6 {[%emt 0:00:57]} 38. h4 {[%emt 0:00:32]} gxh4 {[%emt 0:01:22]} 39. Kxf4 {[%emt 0:00:54]} Ke6 {[%emt 0:00:36]} 40. Rh5 {[%emt 0:00:31]} Rh7 {[%emt 0:02:46]} 41. Rxh4 {[%emt 0:31:33]} Kxd6 {[%emt 0:30:42]} 42. Ke4 {[%emt 0:02:50]} Ke6 {[%emt 0:01:08]} 43. Kd3 {[%emt 0:01:27]} Kf5 {[%emt 0:01:41]} 44. Kc4 {[%emt 0:00:29]} h5 {[%emt 0:00:41]} 45. Kb5 {[%emt 0:01:19]} Kg5 {[%emt 0:00:17]} 46. Rh3 {[%emt 0:00:05]} Kf4 {[%emt 0:00:32]} 47. Ka6 {[%emt 0:00:17]} h4 {[%emt 0:00:38]} 48. a5 {[%emt 0:01:07]} bxa5 {[%emt 0:00:29]} 49. Kxa5 {[%emt 0:00:05]} Ke3 {[%emt 0:16:43]} 0-1

[Event "Slovakia Open Piestany-A 2022"]
[Site "Piestany"]
[Date "2022.07.12"]
[Round "1.4"]
[White "Krasenkow, Michal"]
[Black "Mullick, Raahil"]
[Result "1/2-1/2"]
[ECO "D23"]
[WhiteElo "2569"]
[BlackElo "2237"]
[Annotator "ChessBase"]
[PlyCount "149"]
[EventDate "2022.07.12"]
[EventType "swiss"]
[EventCountry "SVK"]
[SourceTitle "playchess.com"]
[Source "ChessBase"]
[SourceQuality "1"]
[TimeControl "40/5400+30:1800+30"]

1. Nf3 {[%emt 0:00:06]} d5 {[%emt 1:31:00]} 2. d4 {[%emt 1:31:24]} Nf6 {[%emt 0:00:30]} 3. c4 {[%emt 0:00:30]} c6 {[%emt 0:00:30]} 4. Qb3 {[%emt 0:00:30]} dxc4 {[%emt 0:00:30]} 5. Qxc4 {[%emt 0:00:30]} Bg4 {[%emt 0:00:30]} 6. Nbd2 {[%emt 0:00:30]} Nbd7 {[%emt 0:00:30]} 7. g3 {[%emt 0:00:30]} e6 {[%emt 0:00:30]} 8. Bg2 {[%emt 0:00:30]} Be7 {[%emt 0:00:30]} 9. O-O {[%emt 0:00:30]} O-O {[%emt 0:00:30]} 10. Qb3 {[%emt 0:00:30]} Nb6 {[%emt 0:00:30]} 11. Re1 {[%emt 0:00:30]} a5 {[%emt 0:00:30]} 12. e4 {[%emt 0:00:30]} a4 {[%emt 0:00:30]} 13. Qc3 {[%emt 0:00:30]} Rc8 {[%emt 0:00:30]} 14. Ne5 {[%emt 0:00:30]} Bh5 {[%emt 0:00:30]} 15. Ndc4 {[%emt 0:00:30]} Nbd5 {[%emt 0:00:30]} 16. exd5 {[%emt 0:00:30]} cxd5 {[%emt 0:00:30]} 17. g4 {[%emt 0:00:30]} Bg6 {[%emt 0:00:30]} 18. g5 {[%emt 0:00:30]} Ne8 {[%emt 0:00:30]} 19. Qg3 {[%emt 0:00:30]} dxc4 {[%emt 0:00:30]} 20. Bxb7 {[%emt 0:00:30]} Rc7 {[%emt 0:00:30]} 21. Nc6 {[%emt 0:00:30]} Qd7 {[%emt 0:00:30]} 22. Nxe7+ {[%emt 0:00:30]} Qxe7 {[%emt 0:00:30]} 23. Bg2 {[%emt 0:00:30]} Rd7 {[%emt 0:00:30]} 24. d5 {[%emt 0:00:30]} Qb4 {[%emt 0:00:30]} 25. Qe3 {[%emt 0:00:30]} Nc7 {[%emt 0:00:30]} 26. Bd2 {[%emt 0:00:30]} Qxb2 {[%emt 0:00:30]} 27. Bc3 {[%emt 0:00:30]} Qb5 {[%emt 0:00:30]} 28. Qd4 {[%emt 0:00:30]} f6 {[%emt 0:00:30]} 29. gxf6 {[%emt 0:00:30]} gxf6 {[%emt 0:00:30]} 30. Qg4 {[%emt 0:00:30]} Rg7 {[%emt 0:00:30]} 31. dxe6 {[%emt 0:00:30]} Bf5 {[%emt 0:00:30]} 32. Qf3 {[%emt 0:00:30]} Bxe6 {[%emt 0:00:30]} 33. Rxe6 {[%emt 0:00:30]} Nxe6 {[%emt 0:00:30]} 34. Kh1 {[%emt 0:00:30]} Qg5 {[%emt 0:00:30]} 35. Qc6 {[%emt 0:00:30]} Nf4 {[%emt 0:00:30]} 36. Bf3 {[%emt 0:00:30]} Rg6 {[%emt 0:00:30]} 37. Bd2 {[%emt 0:00:30]} Kh8 {[%emt 0:00:30]} 38. Qxc4 {[%emt 0:00:30]} Rfg8 {[%emt 0:00:30]} 39. Qc1 {[%emt 0:00:30]} Nd3 {[%emt 0:00:30]} 40. Bxg5 {[%emt 0:00:30]} Nxc1 {[%emt 0:00:30]} 41. Rxc1 {[%emt 0:30:30]} Rxg5 {[%emt 0:30:30]} 42. h3 {[%emt 0:00:30]} Rf5 {[%emt 0:00:30]} 43. Rc3 {[%emt 0:00:30]} Rb8 {[%emt 0:00:30]} 44. Ra3 {[%emt 0:00:30]} Rg5 {[%emt 0:00:30]} 45. h4 {[%emt 0:00:30]} Rf5 {[%emt 0:00:30]} 46. Kg2 {[%emt 0:00:30]} Rb4 {[%emt 0:00:30]} 47. Kg3 {[%emt 0:00:30]} Rff4 {[%emt 0:00:30]} 48. h5 {[%emt 0:00:30]} Kg7 {[%emt 0:00:30]} 49. Re3 {[%emt 0:00:30]} Rfd4 {[%emt 0:00:30]} 50. Re7+ {[%emt 0:00:30]} Kh6 {[%emt 0:00:30]} 51. Re6 {[%emt 0:00:30]} Kg5 {[%emt 0:00:30]} 52. Re7 {[%emt 0:00:30]} Rd3 {[%emt 0:00:30]} 53. Rg7+ {[%emt 0:00:30]} Kf5 {[%emt 0:00:30]} 54. Kg2 {[%emt 0:00:30]} Rb2 {[%emt 0:00:30]} 55. Rxh7 {[%emt 0:00:30]} Kf4 {[%emt 0:00:30]} 56. Rc7 {[%emt 0:00:30]} Rxa2 {[%emt 0:00:30]} 57. Rc4+ {[%emt 0:00:30]} Kg5 {[%emt 0:00:30]} 58. Rg4+ {[%emt 0:00:30]} Kf5 {[%emt 0:00:30]} 59. Rh4 {[%emt 0:00:30]} Rd8 {[%emt 0:00:30]} 60. h6 {[%emt 0:00:30]} Kg5 {[%emt 0:00:30]} 61. Rh5+ {[%emt 0:00:30]} Kg6 {[%emt 0:00:30]} 62. h7 {[%emt 0:00:30]} Rh8 {[%emt 0:00:30]} 63. Rh3 {[%emt 0:00:30]} a3 {[%emt 0:00:30]} 64. Bd5 {[%emt 0:00:30]} Ra1 {[%emt 0:00:30]} 65. Bg8 {[%emt 0:00:30]} Kf5 {[%emt 0:00:30]} 66. Re3 {[%emt 0:00:30]} Kf4 {[%emt 0:00:30]} 67. Rf3+ {[%emt 0:00:30]} Ke5 {[%emt 0:00:30]} 68. Re3+ {[%emt 0:00:30]} Kd4 {[%emt 0:00:30]} 69. Rf3 {[%emt 0:00:30]} Ke5 {[%emt 0:00:30]} 70. Re3+ {[%emt 0:00:30]} Kf5 {[%emt 0:00:30]} 71. Rf3+ {[%emt 0:00:30]} Kg6 {[%emt 0:00:30]} 72. Rg3+ {[%emt 0:00:30]} Kh6 {[%emt 0:00:30]} 73. Rh3+ {[%emt 0:00:30]} Kg7 {[%emt 0:00:30]} 74. Rg3+ {[%emt 0:00:30]} Kf8 {[%emt 0:00:30]} 75. Rf3 {[%emt 0:00:30]} 1/2-1/2

[Event "Slovakia Open Piestany-A 2022"]
[Site "Piestany"]
[Date "2022.07.12"]
[Round "1.5"]
[White "Sharma Isha"]
[Black "Neugebauer, Martin"]
[Result "1-0"]
[ECO "B90"]
[WhiteElo "2236"]
[BlackElo "2528"]
[Annotator "ChessBase"]
[PlyCount "111"]
[EventDate "2022.07.12"]
[EventType "swiss"]
[EventCountry "SVK"]
[SourceTitle "playchess.com"]
[Source "ChessBase"]
[SourceQuality "1"]
[TimeControl "40/5400+30:1800+30"]

1. e4 {[%emt 0:00:05]} c5 {[%emt 0:00:28]} 2. Nf3 {[%emt 0:00:08]} d6 {[%emt 0:00:33]} 3. d4 {[%emt 0:00:05]} cxd4 {[%emt 0:00:05]} 4. Nxd4 {[%emt 0:00:02]} Nf6 {[%emt 0:00:21]} 5. Nc3 {[%emt 0:00:05]} a6 {[%emt 0:00:37]} 6. Be3 {[%emt 0:00:24]} e5 {[%emt 0:02:39]} 7. Nb3 {[%emt 0:00:08]} Be7 {[%emt 0:00:26]} 8. h3 {[%emt 0:00:06]} Be6 {[%emt 0:03:08]} 9. f4 {[%emt 0:06:45]} exf4 {[%emt 0:02:52]} 10. Bxf4 {[%emt 0:00:05]} Nc6 {[%emt 0:00:31]} 11. Qe2 {[%emt 0:00:06]} Qc7 {[%emt 0:06:38]} 12. O-O-O {[%emt 0:00:57]} Rc8 {[%emt 0:02:50]} 13. Kb1 {[%emt 0:08:18]} O-O {[%emt 0:03:33]} 14. g4 {[%emt 0:06:48]} Ne5 {[%emt 0:02:35]} 15. Nd4 {[%emt 0:14:54]} Qb6 {[%emt 0:08:06]} 16. Qe3 {[%emt 0:05:31]} Qa5 {[%emt 0:05:32]} 17. Nb3 {[%emt 0:15:36]} Qc7 {[%emt 0:01:06]} 18. g5 {[%emt 0:07:11]} Nfd7 {[%emt 0:02:40]} 19. Rh2 {[%emt 0:01:14]} Nb6 {[%emt 0:04:54]} 20. Nd5 {[%emt 0:04:36]} Bxd5 {[%emt 0:07:50]} 21. exd5 {[%emt 0:00:07]} Rfe8 {[%emt 0:00:29]} 22. Qg3 {[%emt 0:06:21]} Bf8 {[%emt 0:01:45]} 23. h4 {[%emt 0:00:32]} g6 {[%emt 0:08:12]} 24. h5 {[%emt 0:02:30]} Bg7 {[%emt 0:00:43]} 25. hxg6 {[%emt 0:01:19]} hxg6 {[%emt 0:00:09]} 26. Qh3 {[%emt 0:03:45]} Nec4 {[%emt 0:07:44]} 27. c3 {[%emt 0:01:35]} Re4 {[%emt 0:08:35]} 28. Bc1 {[%emt 0:04:22]} Ne5 {[%emt 0:13:29]} 29. Nd4 {[%emt 0:04:54]} Re8 {[%emt 0:04:44]} 30. Bg2 {[%emt 0:00:49]} Rg4 {[%emt 0:00:33]} 31. Qh7+ {[%emt 0:03:22]} Kf8 {[%emt 0:00:02]} 32. Ne6+ {[%emt 0:02:42]} fxe6 {[%emt 0:00:10]} 33. Rf1+ {[%emt 0:00:03]} Nf7 {[%emt 0:00:24]} 34. dxe6 {[%emt 0:00:04]} Rxe6 {[%emt 0:00:58]} 35. Bh3 {[%emt 0:00:04]} Rge4 {[%emt 0:01:54]} 36. Bxe6 {[%emt 0:00:07]} Rxe6 {[%emt 0:00:03]} 37. Rhf2 {[%emt 0:00:05]} Re7 {[%emt 0:00:28]} 38. Qxg6 {[%emt 0:00:05]} Kg8 {[%emt 0:01:03]} 39. Rh2 {[%emt 0:02:16]} Qc4 {[%emt 0:00:29]} 40. Rf4 {[%emt 0:00:13]} Qd5 {[%emt 0:00:36]} 41. Qh7+ {[%emt 0:31:04]} Kf8 {[%emt 0:30:31]} 42. g6 {[%emt 0:00:13]} Qd3+ {[%emt 0:00:00]} 43. Ka1 {[%emt 0:00:00]} Nd5 {[%emt 0:00:00]} 44. Rxf7+ {[%emt 0:00:00]} Rxf7 {[%emt 0:00:00]} 45. gxf7 {[%emt 0:00:00]} Qxh7 {[%emt 0:00:00]} 46. Rxh7 {[%emt 0:00:00]} Nf6 {[%emt 0:00:00]} 47. Rh4 {[%emt 0:00:00]} Kxf7 {[%emt 0:00:00]} 48. Bh6 {[%emt 0:00:00]} Bxh6 {[%emt 0:00:00]} 49. Rxh6 {[%emt 0:00:00]} Ke7 {[%emt 0:00:00]} 50. Kb1 {[%emt 0:00:00]} Nd7 {[%emt 0:00:00]} 51. Kc2 {[%emt 0:00:00]} Ne5 {[%emt 0:00:00]} 52. Rh7+ {[%emt 0:00:00]} Nf7 {[%emt 0:00:00]} 53. Kd3 {[%emt 0:00:00]} Ke6 {[%emt 0:00:00]} 54. Kd4 {[%emt 0:00:00]} Nd8 {[%emt 0:00:00]} 55. Rh6+ {[%emt 0:00:00]} Kd7 {[%emt 0:00:00]} 56. Kd5 {[%emt 0:00:00]} 1-0

[Event "Slovakia Open Piestany-A 2022"]
[Site "Piestany"]
[Date "2022.07.12"]
[Round "1.6"]
[White "Schitco, Ivan"]
[Black "Chlpik, Martin"]
[Result "1-0"]
[ECO "A33"]
[WhiteElo "2490"]
[BlackElo "2236"]
[Annotator "ChessBase"]
[PlyCount "55"]
[EventDate "2022.07.12"]
[EventType "swiss"]
[EventCountry "SVK"]
[SourceTitle "playchess.com"]
[Source "ChessBase"]
[SourceQuality "1"]
[TimeControl "40/5400+30:1800+30"]

1. c4 {[%emt 0:00:04]} c5 {[%emt 0:01:03]} 2. Nf3 {[%emt 0:00:52]} Nc6 {[%emt 0:02:31]} 3. d4 {[%emt 0:01:55]} cxd4 {[%emt 0:00:02]} 4. Nxd4 {[%emt 0:00:04]} Nf6 {[%emt 0:00:26]} 5. Nc3 {[%emt 0:00:30]} e6 {[%emt 0:02:12]} 6. g3 {[%emt 0:01:11]} d6 {[%emt 0:00:31]} 7. Bg2 {[%emt 0:01:50]} Bd7 {[%emt 0:00:18]} 8. Ndb5 {[%emt 0:04:57]} Qb8 {[%emt 0:03:02]} 9. Bf4 {[%emt 0:05:07]} Ne5 {[%emt 0:04:50]} 10. b3 {[%emt 0:04:55]} a6 {[%emt 0:18:24]} 11. Nd4 {[%emt 0:00:39]} Be7 {[%emt 0:07:51]} 12. O-O {[%emt 0:02:53]} O-O {[%emt 0:01:55]} 13. Qd2 {[%emt 0:04:39]} Rd8 {[%emt 0:03:42]} 14. Rad1 {[%emt 0:10:05]} h6 {[%emt 0:07:16]} 15. h3 {[%emt 0:02:41]} Nh5 {[%emt 0:12:37]} 16. Be3 {[%emt 0:02:51]} f5 {[%emt 0:01:14]} 17. Na4 {[%emt 0:09:12]} Bxa4 {[%emt 0:09:42]} 18. bxa4 {[%emt 0:01:24]} Nxc4 {[%emt 0:00:09]} 19. Qd3 {[%emt 0:04:22]} Nb2 {[%emt 0:03:08]} 20. Qb3 {[%emt 0:00:14]} Nxd1 {[%emt 0:00:06]} 21. Qxe6+ {[%emt 0:01:32]} Kh8 {[%emt 0:00:52]} 22. Rxd1 {[%emt 0:01:48]} Re8 {[%emt 0:03:30]} 23. Qf7 {[%emt 0:03:14]} Nf6 {[%emt 0:02:41]} 24. Nxf5 {[%emt 0:00:19]} Bf8 {[%emt 0:00:06]} 25. Bxh6 {[%emt 0:00:26]} gxh6 {[%emt 0:01:18]} 26. Qxf6+ {[%emt 0:00:05]} Kh7 {[%emt 0:00:12]} 27. Qf7+ {[%emt 0:00:30]} Kh8 {[%emt 0:00:03]} 28. Bd5 {[%emt 0:00:08]} 1-0

[Event "Slovakia Open Piestany-A 2022"]
[Site "Piestany"]
[Date "2022.07.12"]
[Round "1.7"]
[White "Aradhya, Garg"]
[Black "Omelja, Artem"]
[Result "0-1"]
[ECO "D36"]
[WhiteElo "2229"]
[BlackElo "2478"]
[Annotator "ChessBase"]
[PlyCount "118"]
[EventDate "2022.07.12"]
[EventType "swiss"]
[EventCountry "SVK"]
[SourceTitle "playchess.com"]
[Source "ChessBase"]
[SourceQuality "1"]
[TimeControl "40/5400+30:1800+30"]

1. d4 {[%emt 0:00:03]} d5 {[%emt 0:00:32]} 2. c4 {[%emt 0:00:03]} e6 {[%emt 0:00:14]} 3. Nc3 {[%emt 0:02:17]} Nf6 {[%emt 0:01:29]} 4. cxd5 {[%emt 0:00:02]} exd5 {[%emt 0:00:09]} 5. Bg5 {[%emt 0:00:03]} c6 {[%emt 0:00:25]} 6. e3 {[%emt 0:01:54]} h6 {[%emt 0:00:09]} 7. Bh4 {[%emt 0:00:02]} Be7 {[%emt 0:00:09]} 8. Bd3 {[%emt 0:00:05]} O-O {[%emt 0:00:13]} 9. Qc2 {[%emt 0:00:33]} Re8 {[%emt 0:00:15]} 10. Bg3 {[%emt 0:12:54]} Bd6 {[%emt 0:08:09]} 11. Nf3 {[%emt 0:02:01]} Bxg3 {[%emt 0:02:57]} 12. hxg3 {[%emt 0:02:56]} Nbd7 {[%emt 0:00:17]} 13. O-O-O {[%emt 0:01:26]} Ng4 {[%emt 0:03:19]} 14. Nh4 {[%emt 0:07:41]} Nb6 {[%emt 0:09:15]} 15. Nf5 {[%emt 0:03:39]} Nc4 {[%emt 0:18:21]} 16. e4 {[%emt 0:16:13]} Bxf5 {[%emt 0:06:11]} 17. exf5 {[%emt 0:00:03]} Qg5+ {[%emt 0:02:07]} 18. Kb1 {[%emt 0:00:44]} Nd6 {[%emt 0:02:03]} 19. Qd2 {[%emt 0:18:11]} Re7 {[%emt 0:08:49]} 20. Rh4 {[%emt 0:06:06]} Nf6 {[%emt 0:02:44]} 21. Qxg5 {[%emt 0:03:20]} hxg5 {[%emt 0:00:09]} 22. Rhh1 {[%emt 0:00:36]} Rae8 {[%emt 0:06:32]} 23. f3 {[%emt 0:00:15]} g4 {[%emt 0:00:58]} 24. Kc2 {[%emt 0:02:59]} Nc4 {[%emt 0:01:53]} 25. Bxc4 {[%emt 0:06:27]} dxc4 {[%emt 0:00:07]} 26. b3 {[%emt 0:00:54]} Re3 {[%emt 0:02:38]} 27. Rdf1 {[%emt 0:01:01]} Rd3 {[%emt 0:01:53]} 28. bxc4 {[%emt 0:00:25]} Rxd4 {[%emt 0:00:29]} 29. Rh4 {[%emt 0:03:57]} Rxc4 {[%emt 0:02:22]} 30. Rfh1 {[%emt 0:00:18]} Kf8 {[%emt 0:05:03]} 31. Rh8+ {[%emt 0:02:34]} Ke7 {[%emt 0:00:17]} 32. Re1+ {[%emt 0:00:38]} Kd7 {[%emt 0:00:12]} 33. Rhxe8 {[%emt 0:01:14]} Nxe8 {[%emt 0:00:08]} 34. Kd3 {[%emt 0:00:03]} b5 {[%emt 0:03:06]} 35. a4 {[%emt 0:00:28]} a6 {[%emt 0:00:31]} 36. Ra1 {[%emt 0:00:24]} Nd6 {[%emt 0:02:22]} 37. axb5 {[%emt 0:00:05]} axb5 {[%emt 0:00:05]} 38. Ra7+ {[%emt 0:00:27]} Ke8 {[%emt 0:00:10]} 39. Ra8+ {[%emt 0:00:37]} Ke7 {[%emt 0:00:10]} 40. Ra7+ {[%emt 0:00:01]} Kf6 {[%emt 0:00:37]} 41. Ne4+ {[%emt 0:30:08]} Nxe4 {[%emt 0:31:57]} 42. fxe4 {[%emt 0:00:02]} g6 {[%emt 0:00:29]} 43. fxg6 {[%emt 0:00:13]} Kxg6 {[%emt 0:00:11]} 44. Rb7 {[%emt 0:05:18]} Kf6 {[%emt 0:01:39]} 45. Ke3 {[%emt 0:00:52]} Ke6 {[%emt 0:00:23]} 46. Kd3 {[%emt 0:00:54]} f5 {[%emt 0:00:10]} 47. exf5+ {[%emt 0:00:03]} Kxf5 {[%emt 0:00:07]} 48. Rb6 {[%emt 0:01:41]} Ke5 {[%emt 0:00:20]} 49. Rb8 {[%emt 0:00:06]} Kd5 {[%emt 0:00:14]} 50. Ke3 {[%emt 0:00:59]} Kc5 {[%emt 0:00:30]} 51. Rf8 {[%emt 0:00:11]} Kb4 {[%emt 0:00:11]} 52. Rf1 {[%emt 0:00:15]} c5 {[%emt 0:00:21]} 53. Rb1+ {[%emt 0:00:22]} Ka5 {[%emt 0:00:08]} 54. Rb2 {[%emt 0:00:38]} b4 {[%emt 0:00:09]} 55. Ra2+ {[%emt 0:00:06]} Kb5 {[%emt 0:00:10]} 56. Ra8 {[%emt 0:00:02]} Rd4 {[%emt 0:00:11]} 57. Rb8+ {[%emt 0:00:21]} Kc4 {[%emt 0:00:08]} 58. Ra8 {[%emt 0:00:18]} b3 {[%emt 0:00:09]} 59. Rb8 {[%emt 0:00:05]} Kc3 {[%emt 0:00:09]} 0-1